[Event "Titled Tuesday Blitz February 14 Late 2023"]
[White "Leonte, Sebastian-Marian"]
[Black "Ramirez Allo, Eduardo"]
[WhiteFideId "1268767"]
[BlackFideId "2224178"]
[WhiteElo "1279"]
[BlackElo "2274"]
[Result "0-1"]
[Round "02"]
[TimeControl "180+2"]
[Date "2023.02.14"]
[WhiteClock "0:00:01"]
[BlackClock "0:00:10"]

1. e4 {[%clk 0:03:00]}  e6 {[%clk 0:02:59]} 2. d4 {[%clk 0:02:58]}  d5 {[%clk 0:03:00]} 3. Nc3 {[%clk 0:02:58]}  Nf6 {[%clk 0:03:00]} 4. e5 {[%clk 0:02:56]}  Nfd7 {[%clk 0:03:00]} 5. f4 {[%clk 0:02:56]}  c5 {[%clk 0:03:01]} 6. Nf3 {[%clk 0:02:56]}  Nc6 {[%clk 0:03:01]} 7. Be3 {[%clk 0:02:55]}  a6 {[%clk 0:03:01]} 8. Qd2 {[%clk 0:02:53]}  b5 {[%clk 0:03:01]} 9. dxc5 {[%clk 0:02:37]}  Nxc5 {[%clk 0:02:59]} 10. Qf2 {[%clk 0:02:35]}  Nd7 {[%clk 0:02:25]} 11. O-O-O {[%clk 0:02:31]}  b4 {[%clk 0:02:22]} 12. Ne2 {[%clk 0:02:29]}  a5 {[%clk 0:02:23]} 13. Ned4 {[%clk 0:02:25]}  Qc7 {[%clk 0:02:20]} 14. Nxc6 {[%clk 0:02:03]}  Qxc6 {[%clk 0:02:21]} 15. Nd4 {[%clk 0:02:03]}  Qc7 {[%clk 0:02:07]} 16. Kb1 {[%clk 0:02:02]}  Be7 {[%clk 0:02:03]} 17. Bd3 {[%clk 0:01:39]}  Ba6 {[%clk 0:02:01]} 18. f5 {[%clk 0:01:31]}  Bxd3 {[%clk 0:02:00]} 19. cxd3 {[%clk 0:01:10]}  Ra6 {[%clk 0:01:41]} 20. Rc1 {[%clk 0:00:53]}  Qb7 {[%clk 0:01:40]} 21. Qg3 {[%clk 0:00:44]}  g6 {[%clk 0:01:26]} 22. fxe6 {[%clk 0:00:29]}  fxe6 {[%clk 0:01:27]} 23. Rhf1 {[%clk 0:00:29]}  Rf8 {[%clk 0:01:24]} 24. Qh3 {[%clk 0:00:23]}  Rxf1 {[%clk 0:01:03]} 25. Rxf1 {[%clk 0:00:23]}  Nf8 {[%clk 0:00:54]} 26. Bh6 {[%clk 0:00:18]}  Qb6 {[%clk 0:00:32]} 27. Qg4 {[%clk 0:00:15]}  Nd7 {[%clk 0:00:20]} 28. Bg7 {[%clk 0:00:15]}  Kd8 {[%clk 0:00:16]} 29. Rf7 {[%clk 0:00:14]}  Bc5 {[%clk 0:00:14]} 30. Nb3 {[%clk 0:00:08]}  a4 {[%clk 0:00:11]} 31. Nxc5 {[%clk 0:00:04]}  Qxc5 {[%clk 0:00:12]} 32. Bf6+ {[%clk 0:00:03]}  Kc8 {[%clk 0:00:11]} 33. Re7 {[%clk 0:00:01]}  Rc6 {[%clk 0:00:10]} 0-1


[Site "https://www.chess.com"]

[Event "Titled Tuesday Blitz February 14 Late 2023"]
[White "Chabris, Christopher"]
[Black "Bochnicka, Vladimir"]
[WhiteFideId "2005263"]
[BlackFideId "14943450"]
[WhiteElo "2053"]
[BlackElo "2327"]
[Result "1-0"]
[Round "02"]
[TimeControl "180+2"]
[Date "2023.02.14"]
[WhiteClock "0:00:55"]
[BlackClock "0:01:05"]

1. e4 {[%clk 0:02:59]}  c5 {[%clk 0:02:57]} 2. Nf3 {[%clk 0:02:59]}  Nc6 {[%clk 0:02:56]} 3. Bb5 {[%clk 0:02:59]}  e6 {[%clk 0:02:56]} 4. Bxc6 {[%clk 0:02:59]}  bxc6 {[%clk 0:02:55]} 5. d3 {[%clk 0:02:59]}  Ne7 {[%clk 0:02:26]} 6. h4 {[%clk 0:02:59]}  h5 {[%clk 0:02:21]} 7. Bg5 {[%clk 0:02:57]}  f6 {[%clk 0:02:18]} 8. Be3 {[%clk 0:02:56]}  Ng6 {[%clk 0:02:19]} 9. d4 {[%clk 0:02:36]}  cxd4 {[%clk 0:02:17]} 10. Nxd4 {[%clk 0:02:36]}  c5 {[%clk 0:02:13]} 11. Nb3 {[%clk 0:02:29]}  Bb7 {[%clk 0:02:03]} 12. Nxc5 {[%clk 0:02:13]}  Qa5+ {[%clk 0:02:03]} 13. c3 {[%clk 0:02:13]}  Bxc5 {[%clk 0:02:03]} 14. b4 {[%clk 0:02:12]}  Bxb4 {[%clk 0:02:03]} 15. cxb4 {[%clk 0:02:11]}  Qxb4+ {[%clk 0:02:04]} 16. Nd2 {[%clk 0:02:07]}  Bxe4 {[%clk 0:01:54]} 17. Rc1 {[%clk 0:01:40]}  Kf7 {[%clk 0:01:25]} 18. Rc4 {[%clk 0:01:34]}  Qb7 {[%clk 0:01:21]} 19. Nxe4 {[%clk 0:01:23]}  Qa6 {[%clk 0:01:19]} 20. Qxd7+ {[%clk 0:01:19]}  Ne7 {[%clk 0:01:15]} 21. Rc7 {[%clk 0:01:13]}  Qa3 {[%clk 0:01:11]} 22. Bc5 {[%clk 0:01:03]}  Qc1+ {[%clk 0:01:10]} 23. Ke2 {[%clk 0:01:00]}  Qc4+ {[%clk 0:01:05]} 24. Ke3 {[%clk 0:00:55]} 1-0


[Site "https://www.chess.com"]

[Event "Titled Tuesday Blitz February 14 Late 2023"]
[White "ArchibaldCerveza29"]
[Black "Cueto, Jonny"]
[BlackFideId "3300145"]
[WhiteElo "2469"]
[BlackElo "2122"]
[Result "1-0"]
[Round "02"]
[TimeControl "180+2"]
[Date "2023.02.14"]
[WhiteClock "0:00:07"]
[BlackClock "0:00:51"]

1. e4 {[%clk 0:03:00]}  e6 {[%clk 0:03:00]} 2. d4 {[%clk 0:02:57]}  d5 {[%clk 0:03:00]} 3. Nd2 {[%clk 0:02:49]}  Nc6 {[%clk 0:02:59]} 4. Ngf3 {[%clk 0:02:48]}  Nf6 {[%clk 0:02:59]} 5. Bd3 {[%clk 0:02:47]}  Nb4 {[%clk 0:02:59]} 6. e5 {[%clk 0:02:12]}  Nd7 {[%clk 0:02:48]} 7. Be2 {[%clk 0:02:07]}  c5 {[%clk 0:02:47]} 8. c3 {[%clk 0:02:02]}  Nc6 {[%clk 0:02:47]} 9. O-O {[%clk 0:02:02]}  Qb6 {[%clk 0:02:45]} 10. Nb3 {[%clk 0:01:40]}  a5 {[%clk 0:02:30]} 11. dxc5 {[%clk 0:01:20]}  Bxc5 {[%clk 0:02:21]} 12. Nxc5 {[%clk 0:01:16]}  Qxc5 {[%clk 0:02:20]} 13. Bf4 {[%clk 0:01:10]}  b6 {[%clk 0:02:12]} 14. Rc1 {[%clk 0:01:01]}  Ba6 {[%clk 0:02:04]} 15. b4 {[%clk 0:00:48]}  Bxe2 {[%clk 0:01:55]} 16. Qxe2 {[%clk 0:00:49]}  Qc4 {[%clk 0:01:39]} 17. Qe3 {[%clk 0:00:17]}  O-O {[%clk 0:01:33]} 18. h4 {[%clk 0:00:15]}  Rac8 {[%clk 0:01:25]} 19. a3 {[%clk 0:00:15]}  Qb3 {[%clk 0:01:04]} 20. Nd2 {[%clk 0:00:10]}  Qxa3 {[%clk 0:00:55]} 21. Ra1 {[%clk 0:00:11]}  Qb2 {[%clk 0:00:55]} 22. Rfb1 {[%clk 0:00:04]}  Qc2 {[%clk 0:00:55]} 23. bxa5 {[%clk 0:00:05]}  Nxa5 {[%clk 0:00:54]} 24. Rc1 {[%clk 0:00:02]}  Qf5 {[%clk 0:00:52]} 25. f3 {[%clk 0:00:01]}  Nc4 {[%clk 0:00:53]} 26. Nxc4 {[%clk 0:00:01]}  Rxc4 {[%clk 0:00:54]} 27. Bg3 {[%clk 0:00:01]}  Nc5 {[%clk 0:00:54]} 28. Rab1 {[%clk 0:00:01]}  Nd3 {[%clk 0:00:54]} 29. Rd1 {[%clk 0:00:01]}  Nc5 {[%clk 0:00:54]} 30. Rxb6 {[%clk 0:00:01]}  Rc8 {[%clk 0:00:53]} 31. Rd6 {[%clk 0:00:01]}  g6 {[%clk 0:00:53]} 32. h5 {[%clk 0:00:02]}  Nb3 {[%clk 0:00:52]} 33. hxg6 {[%clk 0:00:01]}  hxg6 {[%clk 0:00:53]} 34. Qh6 {[%clk 0:00:02]}  Qh5 {[%clk 0:00:52]} 35. Qxh5 {[%clk 0:00:02]}  gxh5 {[%clk 0:00:52]} 36. Be1 {[%clk 0:00:02]}  Nc5 {[%clk 0:00:44]} 37. Rc1 {[%clk 0:00:02]}  Na4 {[%clk 0:00:44]} 38. Rb1 {[%clk 0:00:03]}  Nxc3 {[%clk 0:00:44]} 39. Bxc3 {[%clk 0:00:04]}  Rxc3 {[%clk 0:00:44]} 40. Rb7 {[%clk 0:00:04]}  Rc1+ {[%clk 0:00:45]} 41. Kh2 {[%clk 0:00:04]}  Rf8 {[%clk 0:00:45]} 42. Kg3 {[%clk 0:00:04]}  d4 {[%clk 0:00:46]} 43. Rxd4 {[%clk 0:00:04]}  Rc5 {[%clk 0:00:45]} 44. f4 {[%clk 0:00:04]}  Kg7 {[%clk 0:00:46]} 45. Kh4 {[%clk 0:00:04]}  Kg6 {[%clk 0:00:46]} 46. Rdd7 {[%clk 0:00:05]}  Rc3 {[%clk 0:00:46]} 47. g3 {[%clk 0:00:05]}  Rc2 {[%clk 0:00:46]} 48. Kh3 {[%clk 0:00:05]}  Rc1 {[%clk 0:00:46]} 49. Kg2 {[%clk 0:00:05]}  Rc2+ {[%clk 0:00:47]} 50. Kf3 {[%clk 0:00:05]}  Kf5 {[%clk 0:00:47]} 51. Rxf7+ {[%clk 0:00:05]}  Rxf7 {[%clk 0:00:48]} 52. Rxf7+ {[%clk 0:00:06]}  Kg6 {[%clk 0:00:49]} 53. Rf6+ {[%clk 0:00:07]}  Kg7 {[%clk 0:00:49]} 54. Rxe6 {[%clk 0:00:08]}  Rc3+ {[%clk 0:00:49]} 55. Ke4 {[%clk 0:00:08]}  Rc4+ {[%clk 0:00:50]} 56. Kf5 {[%clk 0:00:08]}  Rc3 {[%clk 0:00:51]} 57. Re7+ {[%clk 0:00:09]}  Kf8 {[%clk 0:00:51]} 58. Rh7 {[%clk 0:00:09]}  Rxg3 {[%clk 0:00:51]} 59. Rxh5 {[%clk 0:00:08]}  Rg7 {[%clk 0:00:51]} 60. e6 {[%clk 0:00:08]}  Ke7 {[%clk 0:00:51]} 61. Ke5 {[%clk 0:00:07]}  Rg1 {[%clk 0:00:50]} 62. f5 {[%clk 0:00:07]}  Ke8 {[%clk 0:00:50]} 63. Kf6 {[%clk 0:00:07]}  Re1 {[%clk 0:00:51]} 64. Rh8# {[%clk 0:00:07]} 1-0


[Site "https://www.chess.com"]

[Event "Titled Tuesday Blitz February 14 Late 2023"]
[White "Rose, Felix"]
[Black "Seletsky, Grigory"]
[WhiteFideId "5105722"]
[BlackFideId "14112191"]
[WhiteElo "2091"]
[BlackElo "2259"]
[Result "1-0"]
[Round "02"]
[TimeControl "180+2"]
[Date "2023.02.14"]
[WhiteClock "0:00:05"]
[BlackClock "0:00:01"]

1. e4 {[%clk 0:02:59]}  c5 {[%clk 0:02:59]} 2. Nf3 {[%clk 0:03:00]}  d6 {[%clk 0:03:00]} 3. d4 {[%clk 0:03:00]}  cxd4 {[%clk 0:03:00]} 4. Nxd4 {[%clk 0:03:01]}  Nf6 {[%clk 0:03:00]} 5. Nc3 {[%clk 0:03:01]}  a6 {[%clk 0:03:00]} 6. Be3 {[%clk 0:03:01]}  e5 {[%clk 0:03:00]} 7. Nb3 {[%clk 0:03:02]}  Be6 {[%clk 0:03:01]} 8. f3 {[%clk 0:03:02]}  Nbd7 {[%clk 0:03:01]} 9. Qd2 {[%clk 0:03:03]}  h5 {[%clk 0:03:00]} 10. O-O-O {[%clk 0:02:59]}  Qc7 {[%clk 0:02:58]} 11. Kb1 {[%clk 0:02:59]}  b5 {[%clk 0:02:59]} 12. h4 {[%clk 0:02:59]}  Nb6 {[%clk 0:02:57]} 13. Bg5 {[%clk 0:02:42]}  b4 {[%clk 0:02:49]} 14. Ne2 {[%clk 0:02:04]}  a5 {[%clk 0:02:48]} 15. Nbc1 {[%clk 0:01:55]}  Be7 {[%clk 0:02:30]} 16. Ng3 {[%clk 0:01:47]}  Nc4 {[%clk 0:02:27]} 17. Bxc4 {[%clk 0:01:46]}  Qxc4 {[%clk 0:02:27]} 18. Nf1 {[%clk 0:01:34]}  Rc8 {[%clk 0:02:15]} 19. Ne3 {[%clk 0:01:32]}  Qc7 {[%clk 0:02:04]} 20. Qd3 {[%clk 0:01:21]}  Kf8 {[%clk 0:01:51]} 21. Rd2 {[%clk 0:01:19]}  a4 {[%clk 0:01:42]} 22. Bxf6 {[%clk 0:01:18]}  gxf6 {[%clk 0:01:38]} 23. Nd5 {[%clk 0:01:18]}  Bxd5 {[%clk 0:01:37]} 24. Qxd5 {[%clk 0:01:18]}  a3 {[%clk 0:01:33]} 25. Nd3 {[%clk 0:00:47]}  axb2 {[%clk 0:01:29]} 26. Nxb2 {[%clk 0:00:44]}  Qc5 {[%clk 0:01:13]} 27. Qxc5 {[%clk 0:00:44]}  dxc5 {[%clk 0:01:10]} 28. Nc4 {[%clk 0:00:44]}  Rg8 {[%clk 0:01:08]} 29. Kb2 {[%clk 0:00:38]}  Rd8 {[%clk 0:01:03]} 30. Rhd1 {[%clk 0:00:35]}  Rxd2 {[%clk 0:01:01]} 31. Rxd2 {[%clk 0:00:36]}  Ke8 {[%clk 0:01:01]} 32. Kb3 {[%clk 0:00:35]}  f5 {[%clk 0:00:38]} 33. exf5 {[%clk 0:00:33]}  Bxh4 {[%clk 0:00:37]} 34. Nxe5 {[%clk 0:00:34]}  Bf6 {[%clk 0:00:33]} 35. Nd3 {[%clk 0:00:31]}  Bc3 {[%clk 0:00:25]} 36. Re2+ {[%clk 0:00:31]}  Kf8 {[%clk 0:00:22]} 37. Nxc5 {[%clk 0:00:30]}  h4 {[%clk 0:00:22]} 38. a3 {[%clk 0:00:25]}  h3 {[%clk 0:00:17]} 39. gxh3 {[%clk 0:00:25]}  Rg3 {[%clk 0:00:15]} 40. axb4 {[%clk 0:00:21]}  Rxf3 {[%clk 0:00:15]} 41. Nd3 {[%clk 0:00:21]}  Bf6 {[%clk 0:00:13]} 42. Rh2 {[%clk 0:00:17]}  Bh4 {[%clk 0:00:12]} 43. b5 {[%clk 0:00:16]}  Rxf5 {[%clk 0:00:12]} 44. Kc4 {[%clk 0:00:15]}  Ke7 {[%clk 0:00:11]} 45. b6 {[%clk 0:00:15]}  Kd7 {[%clk 0:00:10]} 46. Re2 {[%clk 0:00:14]}  Kc6 {[%clk 0:00:10]} 47. Ne5+ {[%clk 0:00:12]}  Kxb6 {[%clk 0:00:10]} 48. Kd3 {[%clk 0:00:10]}  Kc5 {[%clk 0:00:07]} 49. c4 {[%clk 0:00:08]}  Bg3 {[%clk 0:00:06]} 50. Nd7+ {[%clk 0:00:07]}  Kd6 {[%clk 0:00:05]} 51. Nb6 {[%clk 0:00:07]}  Ra5 {[%clk 0:00:04]} 52. Rc2 {[%clk 0:00:05]}  Be5 {[%clk 0:00:03]} 53. Ke4 {[%clk 0:00:05]}  f6 {[%clk 0:00:01]} 54. Nc8+ {[%clk 0:00:05]} 1-0


[Site "https://www.chess.com"]

[Event "Titled Tuesday Blitz February 14 Late 2023"]
[White "Sliwicki, Damian"]
[Black "Kochetov, Andrey"]
[WhiteFideId "1127128"]
[BlackFideId "24130532"]
[WhiteElo "2158"]
[BlackElo "2165"]
[Result "1-0"]
[Round "02"]
[TimeControl "180+2"]
[Date "2023.02.14"]
[WhiteClock "0:02:04"]
[BlackClock "0:02:07"]

1. e4 {[%clk 0:02:54]}  c5 {[%clk 0:02:49]} 2. Nf3 {[%clk 0:02:48]}  d6 {[%clk 0:02:45]} 3. d4 {[%clk 0:02:48]}  cxd4 {[%clk 0:02:38]} 4. Qxd4 {[%clk 0:02:49]}  Nf6 {[%clk 0:02:38]} 5. Bg5 {[%clk 0:02:48]}  e6 {[%clk 0:02:36]} 6. Nc3 {[%clk 0:02:41]}  Be7 {[%clk 0:02:36]} 7. O-O-O {[%clk 0:02:39]}  a6 {[%clk 0:02:36]} 8. e5 {[%clk 0:02:36]}  dxe5 {[%clk 0:02:36]} 9. Qc4 {[%clk 0:02:14]}  Nfd7 {[%clk 0:02:18]} 10. Bxe7 {[%clk 0:02:09]}  Qxe7 {[%clk 0:02:19]} 11. Qxc8+ {[%clk 0:02:08]}  Qd8 {[%clk 0:02:14]} 12. Qxb7 {[%clk 0:02:08]}  Nc6 {[%clk 0:02:08]} 13. Qxc6 {[%clk 0:02:07]}  Rc8 {[%clk 0:02:08]} 14. Qa4 {[%clk 0:02:05]}  Rc7 {[%clk 0:02:07]} 15. Nxe5 {[%clk 0:02:04]} 1-0


[Site "https://www.chess.com"]

[Event "Titled Tuesday Blitz February 14 Late 2023"]
[White "Kavutskiy, Konstantin"]
[Black "Mendez Machado, Andre"]
[WhiteFideId "2026384"]
[BlackFideId "6603793"]
[WhiteElo "2414"]
[BlackElo "1974"]
[Result "1-0"]
[Round "02"]
[TimeControl "180+2"]
[Date "2023.02.14"]
[WhiteClock "0:02:07"]
[BlackClock "0:00:34"]

1. d4 {[%clk 0:03:00]}  Nf6 {[%clk 0:02:54]} 2. Bg5 {[%clk 0:03:00]}  d5 {[%clk 0:02:54]} 3. Nd2 {[%clk 0:03:00]}  h6 {[%clk 0:02:49]} 4. Bh4 {[%clk 0:02:59]}  e6 {[%clk 0:02:49]} 5. e3 {[%clk 0:02:58]}  Be7 {[%clk 0:02:50]} 6. c3 {[%clk 0:02:58]}  c5 {[%clk 0:02:45]} 7. Bd3 {[%clk 0:02:58]}  Nbd7 {[%clk 0:02:43]} 8. f4 {[%clk 0:02:57]}  a6 {[%clk 0:02:02]} 9. Ngf3 {[%clk 0:02:56]}  b5 {[%clk 0:02:02]} 10. O-O {[%clk 0:02:55]}  Bb7 {[%clk 0:02:02]} 11. Ne5 {[%clk 0:02:53]}  Ne4 {[%clk 0:01:54]} 12. Bxe7 {[%clk 0:02:42]}  Qxe7 {[%clk 0:01:55]} 13. Nxd7 {[%clk 0:02:29]}  Nxd2 {[%clk 0:01:18]} 14. Qxd2 {[%clk 0:02:20]}  Qxd7 {[%clk 0:01:16]} 15. f5 {[%clk 0:02:17]}  c4 {[%clk 0:01:05]} 16. Bc2 {[%clk 0:02:16]}  O-O {[%clk 0:00:48]} 17. f6 {[%clk 0:02:14]}  g6 {[%clk 0:00:39]} 18. e4 {[%clk 0:02:13]}  Kh7 {[%clk 0:00:39]} 19. e5 {[%clk 0:02:11]}  b4 {[%clk 0:00:34]} 20. Rf4 {[%clk 0:02:07]} 1-0


[Site "https://www.chess.com"]

[Event "Titled Tuesday Blitz February 14 Late 2023"]
[White "Erdogan, Anil Berk"]
[Black "Zaksaite, Salomeja"]
[WhiteFideId "6348173"]
[BlackFideId "12801496"]
[WhiteElo "2091"]
[BlackElo "2283"]
[Result "1-0"]
[Round "02"]
[TimeControl "180+2"]
[Date "2023.02.14"]
[WhiteClock "0:00:10"]
[BlackClock "0:00:01"]

1. e4 {[%clk 0:03:00]}  c5 {[%clk 0:02:57]} 2. Nf3 {[%clk 0:02:58]}  Nc6 {[%clk 0:02:57]} 3. d4 {[%clk 0:02:58]}  cxd4 {[%clk 0:02:56]} 4. Nxd4 {[%clk 0:02:59]}  Nf6 {[%clk 0:02:56]} 5. Nc3 {[%clk 0:02:59]}  e5 {[%clk 0:02:57]} 6. Ndb5 {[%clk 0:02:59]}  d6 {[%clk 0:02:57]} 7. Nd5 {[%clk 0:02:59]}  Nxd5 {[%clk 0:02:56]} 8. exd5 {[%clk 0:03:00]}  Nb8 {[%clk 0:02:56]} 9. c4 {[%clk 0:02:59]}  a6 {[%clk 0:02:54]} 10. Nc3 {[%clk 0:02:59]}  Be7 {[%clk 0:02:54]} 11. Bd3 {[%clk 0:02:57]}  O-O {[%clk 0:02:52]} 12. O-O {[%clk 0:02:54]}  f5 {[%clk 0:02:50]} 13. f3 {[%clk 0:02:48]}  Bg5 {[%clk 0:02:46]} 14. a3 {[%clk 0:02:41]}  Nd7 {[%clk 0:02:46]} 15. b4 {[%clk 0:02:39]}  Bxc1 {[%clk 0:02:37]} 16. Qxc1 {[%clk 0:02:35]}  a5 {[%clk 0:02:25]} 17. Qe3 {[%clk 0:02:21]}  Qf6 {[%clk 0:02:00]} 18. Be2 {[%clk 0:01:58]}  e4 {[%clk 0:01:48]} 19. fxe4 {[%clk 0:01:54]}  f4 {[%clk 0:01:48]} 20. Qd2 {[%clk 0:01:45]}  axb4 {[%clk 0:01:47]} 21. axb4 {[%clk 0:01:45]}  Rxa1 {[%clk 0:01:48]} 22. Rxa1 {[%clk 0:01:45]}  Ne5 {[%clk 0:01:48]} 23. Rf1 {[%clk 0:01:40]}  Bd7 {[%clk 0:01:43]} 24. c5 {[%clk 0:01:26]}  g5 {[%clk 0:01:38]} 25. h3 {[%clk 0:00:56]}  Rc8 {[%clk 0:01:32]} 26. Rb1 {[%clk 0:00:26]}  f3 {[%clk 0:00:29]} 27. Rf1 {[%clk 0:00:21]}  dxc5 {[%clk 0:00:25]} 28. bxc5 {[%clk 0:00:18]}  Rxc5 {[%clk 0:00:25]} 29. Bxf3 {[%clk 0:00:19]}  Kg7 {[%clk 0:00:06]} 30. Ne2 {[%clk 0:00:14]}  Nxf3+ {[%clk 0:00:03]} 31. Rxf3 {[%clk 0:00:15]}  Qe5 {[%clk 0:00:03]} 32. Qd4 {[%clk 0:00:10]}  Rc1+ {[%clk 0:00:01]} 33. Kf2 {[%clk 0:00:10]} 1-0


[Site "https://www.chess.com"]

[Event "Titled Tuesday Blitz February 14 Late 2023"]
[White "Taboas Rodriguez, Daniel"]
[Black "Dylag, Emilia"]
[WhiteFideId "2208466"]
[BlackFideId "21805172"]
[WhiteElo "2371"]
[BlackElo "2095"]
[Result "1-0"]
[Round "02"]
[TimeControl "180+2"]
[Date "2023.02.14"]
[WhiteClock "0:01:43"]
[BlackClock "0:01:27"]

1. d4 {[%clk 0:03:00]}  Nf6 {[%clk 0:02:58]} 2. Nf3 {[%clk 0:03:00]}  e6 {[%clk 0:02:58]} 3. c4 {[%clk 0:03:01]}  d5 {[%clk 0:02:58]} 4. Nc3 {[%clk 0:03:01]}  Bb4 {[%clk 0:02:57]} 5. Bg5 {[%clk 0:03:01]}  dxc4 {[%clk 0:02:57]} 6. e3 {[%clk 0:03:00]}  b5 {[%clk 0:02:56]} 7. a4 {[%clk 0:03:00]}  c6 {[%clk 0:02:54]} 8. Be2 {[%clk 0:03:00]}  Bb7 {[%clk 0:02:54]} 9. O-O {[%clk 0:03:00]}  a6 {[%clk 0:02:54]} 10. Ne5 {[%clk 0:02:59]}  Be7 {[%clk 0:02:53]} 11. f4 {[%clk 0:02:58]}  Nbd7 {[%clk 0:02:53]} 12. Bf3 {[%clk 0:02:57]}  Qc7 {[%clk 0:02:52]} 13. axb5 {[%clk 0:02:55]}  axb5 {[%clk 0:02:44]} 14. Rxa8+ {[%clk 0:02:53]}  Bxa8 {[%clk 0:02:45]} 15. Nxb5 {[%clk 0:02:53]}  cxb5 {[%clk 0:02:45]} 16. Bxa8 {[%clk 0:02:54]}  O-O {[%clk 0:02:44]} 17. Bf3 {[%clk 0:02:42]}  h6 {[%clk 0:02:39]} 18. Bh4 {[%clk 0:02:42]}  Nxe5 {[%clk 0:02:30]} 19. fxe5 {[%clk 0:02:41]}  Nd5 {[%clk 0:02:30]} 20. Bxd5 {[%clk 0:02:25]}  exd5 {[%clk 0:02:30]} 21. Bf6 {[%clk 0:02:20]}  Bxf6 {[%clk 0:02:16]} 22. exf6 {[%clk 0:02:21]}  g6 {[%clk 0:02:09]} 23. Qf3 {[%clk 0:02:16]}  Qd6 {[%clk 0:02:04]} 24. Qh3 {[%clk 0:02:12]}  Kh7 {[%clk 0:02:00]} 25. Rf4 {[%clk 0:02:12]}  Re8 {[%clk 0:01:59]} 26. Qf3 {[%clk 0:02:04]}  b4 {[%clk 0:01:55]} 27. Rh4 {[%clk 0:02:04]}  Qe6 {[%clk 0:01:45]} 28. Kf2 {[%clk 0:01:50]}  g5 {[%clk 0:01:39]} 29. Rh5 {[%clk 0:01:42]}  b3 {[%clk 0:01:38]} 30. Rxg5 {[%clk 0:01:42]}  hxg5 {[%clk 0:01:33]} 31. Qh5+ {[%clk 0:01:42]}  Kg8 {[%clk 0:01:33]} 32. Qxg5+ {[%clk 0:01:42]}  Kf8 {[%clk 0:01:27]} 33. Qg7# {[%clk 0:01:43]} 1-0


[Site "https://www.chess.com"]

[Event "Titled Tuesday Blitz February 14 Late 2023"]
[White "De Souza, Cristiano Gomes"]
[Black "Gurevich, Dmitry"]
[WhiteFideId "2151758"]
[BlackFideId "2000407"]
[WhiteElo "2018"]
[BlackElo "2393"]
[Result "0-1"]
[Round "02"]
[TimeControl "180+2"]
[Date "2023.02.14"]
[WhiteClock "0:00:51"]
[BlackClock "0:01:22"]

1. d4 {[%clk 0:03:00]}  Nf6 {[%clk 0:02:58]} 2. c4 {[%clk 0:03:00]}  a6 {[%clk 0:02:58]} 3. Nf3 {[%clk 0:03:01]}  c5 {[%clk 0:02:58]} 4. d5 {[%clk 0:03:00]}  b5 {[%clk 0:02:57]} 5. cxb5 {[%clk 0:02:59]}  axb5 {[%clk 0:02:57]} 6. Nc3 {[%clk 0:02:36]}  b4 {[%clk 0:02:56]} 7. Na4 {[%clk 0:02:29]}  Qa5 {[%clk 0:02:54]} 8. b3 {[%clk 0:02:27]}  d6 {[%clk 0:02:54]} 9. Bb2 {[%clk 0:02:24]}  Bd7 {[%clk 0:02:52]} 10. Bxf6 {[%clk 0:02:20]}  exf6 {[%clk 0:02:34]} 11. Nb2 {[%clk 0:02:19]}  g6 {[%clk 0:02:31]} 12. Nc4 {[%clk 0:02:15]}  Qc7 {[%clk 0:02:30]} 13. e4 {[%clk 0:02:16]}  Bg7 {[%clk 0:02:30]} 14. Bd3 {[%clk 0:02:05]}  f5 {[%clk 0:02:21]} 15. exf5 {[%clk 0:02:01]}  O-O {[%clk 0:02:10]} 16. O-O {[%clk 0:01:57]}  Bb5 {[%clk 0:01:57]} 17. Rc1 {[%clk 0:01:43]}  Rxa2 {[%clk 0:01:55]} 18. Rc2 {[%clk 0:01:41]}  Ra1 {[%clk 0:01:51]} 19. Qe2 {[%clk 0:01:36]}  Rxf1+ {[%clk 0:01:50]} 20. Kxf1 {[%clk 0:01:36]}  Nd7 {[%clk 0:01:48]} 21. g4 {[%clk 0:01:24]}  Nf6 {[%clk 0:01:44]} 22. g5 {[%clk 0:01:16]}  Re8 {[%clk 0:01:43]} 23. Qd2 {[%clk 0:01:04]}  Nxd5 {[%clk 0:01:41]} 24. f6 {[%clk 0:01:04]}  Bf8 {[%clk 0:01:41]} 25. Bxg6 {[%clk 0:01:01]}  hxg6 {[%clk 0:01:33]} 26. Qxd5 {[%clk 0:00:58]}  Bc6 {[%clk 0:01:32]} 27. Qd3 {[%clk 0:00:56]}  Qd7 {[%clk 0:01:25]} 28. Nh4 {[%clk 0:00:51]}  Be4 {[%clk 0:01:22]} 0-1


[Site "https://www.chess.com"]

[Event "Titled Tuesday Blitz February 14 Late 2023"]
[White "Wang, Alexander J"]
[Black "Buchenau, Frank"]
[WhiteFideId "30955270"]
[BlackFideId "4604350"]
[WhiteElo "1815"]
[BlackElo "2222"]
[Result "0-1"]
[Round "02"]
[TimeControl "180+2"]
[Date "2023.02.14"]
[WhiteClock "0:01:37"]
[BlackClock "0:02:23"]

1. e4 {[%clk 0:03:00]}  e6 {[%clk 0:02:56]} 2. d4 {[%clk 0:03:00]}  d5 {[%clk 0:02:57]} 3. e5 {[%clk 0:03:00]}  c5 {[%clk 0:02:56]} 4. c3 {[%clk 0:03:00]}  Qb6 {[%clk 0:02:57]} 5. Nf3 {[%clk 0:03:00]}  Bd7 {[%clk 0:02:57]} 6. Be2 {[%clk 0:03:00]}  cxd4 {[%clk 0:02:56]} 7. cxd4 {[%clk 0:02:59]}  Bb5 {[%clk 0:02:56]} 8. O-O {[%clk 0:02:48]}  Bxe2 {[%clk 0:02:55]} 9. Qxe2 {[%clk 0:02:44]}  Nc6 {[%clk 0:02:56]} 10. Nc3 {[%clk 0:02:39]}  Nge7 {[%clk 0:02:56]} 11. Be3 {[%clk 0:02:36]}  Nf5 {[%clk 0:02:56]} 12. Rfd1 {[%clk 0:02:24]}  Be7 {[%clk 0:02:55]} 13. a3 {[%clk 0:02:18]}  Rc8 {[%clk 0:02:54]} 14. Rac1 {[%clk 0:02:17]}  O-O {[%clk 0:02:54]} 15. b4 {[%clk 0:02:14]}  a6 {[%clk 0:02:40]} 16. Na4 {[%clk 0:02:13]}  Qb5 {[%clk 0:02:39]} 17. Qxb5 {[%clk 0:02:11]}  axb5 {[%clk 0:02:40]} 18. Nc5 {[%clk 0:02:12]}  Bxc5 {[%clk 0:02:35]} 19. Rxc5 {[%clk 0:02:08]}  b6 {[%clk 0:02:26]} 20. Rc3 {[%clk 0:01:50]}  Nxe5 {[%clk 0:02:23]} 21. Rxc8 {[%clk 0:01:36]}  Nxf3+ {[%clk 0:02:23]} 22. gxf3 {[%clk 0:01:37]}  Rxc8 {[%clk 0:02:23]} 23. Rc1 {[%clk 0:01:37]} 0-1


[Site "https://www.chess.com"]